fUST/lending_fUST_20250125
["ID","MTS","AMOUNT","RATE_DAILY","PERIOD"]
[350260598,1737748242045,-151.0,0.00019178,2]
[350260599,1737748242055,-151.0,0.00019178,2]
[350260600,1737748242064,-500.0,0.00019178,2]
[350260601,1737748242074,-500.0,0.00019178,2]
[350260602,1737748242083,-151.0,0.00019178,2]
[350260603,1737748242095,-151.0,0.00019178,2]
[350260604,1737748242105,-502.48843756,0.00019178,2]
[350260605,1737748242114,-500.0,0.00019178,2]
[350260606,1737748242123,-151.0,0.00019178,2]
[350260607,1737748242134,-288.326338,0.00019178,2]
[350260608,1737748242143,-500.0,0.00019178,2]
[350260609,1737748242152,-500.0,0.00019178,2]
[350260610,1737748242162,-500.0,0.00019178,2]
[350260611,1737748242173,-500.0,0.00019178,2]
[350260612,1737748242186,-381.87986175,0.00019178,2]
[350260613,1737748242198,-179.33013825,0.00019178,2]
[350260614,1737748242208,-494.84141528,0.00019178,2]
[350260615,1737748242219,-5.15858472,0.00019178,2]
[350260616,1737748242228,-500.0,0.00019178,2]
[350260617,1737748242237,-253.26959468,0.00019178,2]
[350260618,1737748242249,-249.31545217,0.00019178,2]
[350260619,1737748242258,-850.67,0.00019178,2]
[350260620,1737748242267,-500.0,0.00019178,2]
[350260621,1737748242276,-386.48720479,0.00019178,2]
[350260622,1737748242287,-113.51279521,0.00019178,2]
[350260623,1737748242296,-171.92700965,0.00019178,2]
[350260624,1737748242433,-328.07299035,0.00019178,2]
[350260625,1737748242442,-20.59082165,0.00019178,2]
[350260626,1737748242453,-634.51917835,0.00019178,2]
[350260627,1737748242462,-64.6373294,0.00019178,2]
[350260638,1737748243302,-435.3626706,0.00019178,2]
[350260639,1737748243312,-90.11732938,0.00019178,2]
[350260640,1737748243408,-410.339397,0.00019178,2]
[350260641,1737748243418,-526.48,0.00019178,2]
[350260642,1737748243432,-500.0,0.00019178,2]
[350260643,1737748243441,-526.48,0.00019178,2]
[350260644,1737748243450,-390.14833998,0.00019178,2]
[350260657,1737748246303,-151.0,0.000191,2]
[350260658,1737748246314,-601.53,0.000191,2]
[350260659,1737748246345,-500.0,0.000191,2]
[350260660,1737748246450,-70.719396,0.000191,2]
[350260661,1737748246460,-1172.249396,0.0001914,2]
[350260662,1737748246471,-136.33166002,0.00019178,2]
[350260663,1737748246480,-526.48,0.00019178,2]
[350260664,1737748246490,-526.48,0.00019178,2]
[350260665,1737748246499,-526.48,0.00019178,2]
[350260666,1737748246509,-526.48,0.00019178,2]
[350260667,1737748246519,-526.48,0.00019178,2]
[350260668,1737748246528,-526.48,0.00019178,2]
[350260669,1737748246538,-500.0,0.00019178,2]
[350260670,1737748246548,-526.48,0.00019178,2]
[350260671,1737748246557,-500.0,0.00019178,2]
[350260672,1737748246566,-526.48,0.00019178,2]
[350260673,1737748246576,-526.48,0.00019178,2]
[350260674,1737748246585,-526.48,0.00019178,2]
[350260675,1737748246595,-339.96657097,0.00019178,2]
[350260676,1737748246605,-526.48,0.00019178,2]
[350260677,1737748246615,-500.0,0.00019178,2]
[350260678,1737748246624,-526.48,0.00019178,2]
[350260679,1737748246634,-983.64,0.00019178,2]
[350260680,1737748246645,-526.48,0.00019178,2]
[350260681,1737748246655,-526.48,0.00019178,2]
[350260682,1737748246665,-526.48,0.00019178,2]
[350260683,1737748246676,-500.0,0.00019178,2]
[350260684,1737748246686,-526.48,0.00019178,2]
[350260685,1737748246696,-526.48,0.00019178,2]
[350260686,1737748246706,-526.48,0.00019178,2]
[350260687,1737748246716,-526.48,0.00019178,2]
[350260688,1737748246728,-526.48,0.00019178,2]
[350260689,1737748246738,-526.63723008,0.00019178,2]
[350260690,1737748246747,-500.0,0.00019178,2]
[350260691,1737748246757,-500.0,0.00019178,2]
[350260692,1737748246766,-500.0,0.00019178,2]
[350260693,1737748246776,-506.49772625,0.00019178,2]
[350260694,1737748246786,-505.06007321,0.00019178,2]
[350260695,1737748246795,-340.08910056,0.00019178,2]
[350260696,1737748246888,-500.0,0.00019178,2]
[350260697,1737748246906,-564.4,0.00019178,2]
[350260698,1737748246915,-505.37093196,0.00019178,2]
[350260699,1737748246925,-500.0,0.00019178,2]
[350260700,1737748246937,-500.0,0.00019178,2]
[350260701,1737748246946,-500.0,0.00019178,2]
[350260702,1737748246957,-500.0,0.00019178,2]
[350260703,1737748246966,-291.25668344,0.00019178,2]
[350260704,1737748246975,-500.0,0.00019178,2]
[350260705,1737748246984,-500.0,0.00019178,2]
[350260706,1737748246994,-500.0,0.00019178,2]
[350260707,1737748247003,-500.0,0.00019178,2]
[350260708,1737748247013,-500.0,0.00019178,2]
[350260709,1737748247022,-500.0,0.00019178,2]
[350260710,1737748247031,-500.0,0.00019178,2]
[350260711,1737748247041,-500.0,0.00019178,2]
[350260712,1737748247051,-501.23345287,0.00019178,2]
[350260713,1737748247060,-508.29396194,0.00019178,2]
[350260714,1737748247069,-507.08336686,0.00019178,2]
[350260715,1737748247079,-500.0,0.00019178,2]
[350260716,1737748247090,-500.0,0.00019178,2]
[350260717,1737748247101,-672.94,0.00019178,2]
[350260718,1737748247111,-835.71,0.00019178,2]
[350260719,1737748247121,-500.0,0.00019178,2]
[350260720,1737748247130,-500.0,0.00019178,2]
[350260721,1737748247141,-151.0,0.00019178,2]
[350260722,1737748247151,-151.0,0.00019178,2]
[350260723,1737748247160,-1000.0,0.00019178,2]
[350260724,1737748247170,-151.0,0.00019178,2]
[350260725,1737748247184,-464.67190147,0.00019178,2]
[350260726,1737748247194,-151.0,0.00019178,2]
[350260727,1737748247204,-151.0,0.00019178,2]
[350260728,1737748247213,-151.0,0.00019178,2]
[350260729,1737748247223,-1318.55,0.00019178,2]
[350260730,1737748247232,-500.0,0.00019178,2]
[350260731,1737748247241,-500.0,0.00019178,2]
[350260732,1737748247250,-500.0,0.00019178,2]
[350260733,1737748247260,-500.0,0.00019178,2]
[350260734,1737748247269,-500.0,0.00019178,2]
[350260735,1737748247278,-500.0,0.00019178,2]
[350260736,1737748247287,-500.0,0.00019178,2]
[350260737,1737748247297,-152.02123548,0.00019178,2]
[350260738,1737748247306,-266.82868389,0.00019178,2]
[350260739,1737748467760,3000.0,0.00019178,30]
[350260741,1737748666453,300.0,0.00017476,2]
[350260742,1737748675076,300.0,0.00017476,2]
[350260744,1737748707236,164.180291,0.00013973,2]
[350260746,1737748883120,335.46,0.00017556,2]
[350260800,1737749432556,-617.2014439,0.00017911,2]
[350260801,1737749432566,-3904.5173098,0.00017929,2]
[350260802,1737749432576,-300.0,0.0001801,2]
[350260803,1737749432586,-1866.55,0.00018011,2]
[350260804,1737749432596,-1866.55,0.00018011,2]
[350260805,1737749432607,-1866.55,0.00018011,2]
[350260806,1737749432617,-1866.55,0.00018011,2]
[350260807,1737749432627,-1866.55,0.00018011,2]
[350260808,1737749432637,-703.22671965,0.00018011,2]
[350260814,1737749432763,-937.04531065,0.00018011,2]
[350260819,1737749432795,-226.2779697,0.00018011,2]
[350260821,1737749432805,-334.2840005,0.00018011,2]
[350260872,1737749438421,-1532.2659995,0.00018011,2]
[350260874,1737749438431,-1866.55,0.00018011,2]
[350260876,1737749438440,-1866.55,0.00018011,2]
[350260878,1737749438450,-1793.06505939,0.00018011,2]
[350260880,1737749438461,-73.48494061,0.00018011,2]
[350260882,1737749438470,-1866.55,0.00018011,2]
[350260884,1737749438479,-1866.55,0.00018011,2]
[350260886,1737749438489,-1152.32389968,0.00018011,2]
[350260888,1737749438503,-714.22610032,0.00018011,2]
[350260890,1737749438516,-1866.55,0.00018011,2]
[350260892,1737749438526,-127.07678743,0.00018011,2]
[350260894,1737749438552,-1739.47321257,0.00018011,2]
[350260895,1737749438561,-1866.55,0.00018011,2]
[350260896,1737749438570,-1866.55,0.00018011,2]
[350260898,1737749438582,-1866.55,0.00018011,2]
[350260900,1737749438591,-1866.55,0.00018011,2]
[350260902,1737749438601,-1866.55,0.00018011,2]
[350260903,1737749438611,-1866.55,0.00018011,2]
[350260904,1737749438620,-1866.55,0.00018011,2]
[350260906,1737749438630,-1866.55,0.00018011,2]
[350260907,1737749438640,-1866.76966081,0.00018011,2]
[350260908,1737749438652,-327.616,0.0001822,2]
[350260909,1737749438661,-754.64500193,0.00018227,2]
[350260910,1737749438671,-347.46159448,0.00018497,2]
[350260911,1737749438681,-617.20144385,0.00018624,2]
[350260912,1737749438691,-10714.64533164,0.00018649,2]
[350260913,1737749438701,-153.0,0.000187,2]
[350260914,1737749438710,-153.0,0.000188,2]
[350260915,1737749438720,-598.14712845,0.000189,2]
[350260916,1737749438730,-10714.64533165,0.00018909,2]
[350260917,1737749438739,-500.0,0.00019035,2]
[350260918,1737749438749,-5613.92117368,0.00019082,2]
[350260919,1737749438759,-235.593,0.0001909,2]
[350260920,1737749438768,-300.0,0.000191,8]
[350260921,1737749438777,-892.0,0.000191,2]
[350260922,1737749438786,-500.0,0.00019129,2]
[350260923,1737749438796,-151.0,0.00019129,2]
[350260924,1737749438806,-1200.0,0.00019129,2]
[350260925,1737749438816,-227.80891633,0.00019168,2]
[350260926,1737749438825,-240.63028843,0.00019168,2]
[350260927,1737749438835,-500.0,0.00019168,2]
[350260928,1737749438845,-500.0,0.00019168,2]
[350260929,1737749438855,-500.0,0.00019168,2]
[350260930,1737749438864,-500.0,0.00019168,2]
[350260931,1737749438874,-500.0,0.00019168,2]
[350260932,1737749438883,-500.0,0.00019168,2]
[350260933,1737749438893,-500.0,0.00019168,2]
[350260934,1737749438904,-500.0,0.00019168,2]
[350260935,1737749438914,-500.0,0.00019168,2]
[350260936,1737749438924,-500.0,0.00019168,2]
[350260937,1737749438934,-500.0,0.00019168,2]
[350260938,1737749438944,-500.0,0.00019168,2]
[350260939,1737749438954,-500.0,0.00019168,2]
[350260940,1737749438963,-500.0,0.00019168,2]
[350260941,1737749438973,-500.0,0.00019168,2]
[350260942,1737749438982,-500.0,0.00019168,2]
[350260943,1737749438991,-500.0,0.00019168,2]
[350260944,1737749439001,-255.00346669,0.00019168,2]
[350260945,1737749439010,-500.0,0.00019168,2]
[350260946,1737749439020,-500.0,0.00019168,2]
[350260947,1737749439029,-500.0,0.00019168,2]
[350260948,1737749439039,-500.0,0.00019168,2]
[350260949,1737749439048,-500.0,0.00019168,2]
[350260950,1737749439058,-500.0,0.00019168,2]
[350260951,1737749439068,-388.06489547,0.00019168,2]
[350260952,1737749439078,-500.0,0.00019168,2]
[350260953,1737749439087,-500.0,0.00019168,2]
[350260954,1737749439097,-500.0,0.00019168,2]
[350260955,1737749439106,-500.0,0.00019168,2]
[350260956,1737749439116,-500.0,0.00019168,2]
[350260957,1737749439126,-500.0,0.00019168,2]
[350260958,1737749439136,-500.0,0.00019168,2]
[350260959,1737749439146,-500.0,0.00019168,2]
[350260960,1737749439157,-500.0,0.00019168,2]
[350260961,1737749439167,-500.0,0.00019168,2]
[350260962,1737749439177,-500.0,0.00019168,2]
[350260963,1737749439187,-500.0,0.00019168,2]
[350260964,1737749439197,-500.0,0.00019168,2]
[350260965,1737749439207,-500.0,0.00019168,2]
[350260966,1737749439216,-500.0,0.00019168,2]
[350260967,1737749439226,-500.0,0.00019168,2]
[350260968,1737749439236,-500.0,0.00019168,2]
[350260969,1737749439245,-500.0,0.00019168,2]
[350260970,1737749439257,-500.0,0.00019168,2]
[350260971,1737749439267,-500.0,0.00019168,2]
[350260972,1737749439277,-500.0,0.00019168,2]
[350260973,1737749439287,-500.0,0.00019168,2]
[350260974,1737749439297,-500.0,0.00019168,2]
[350260975,1737749439307,-500.0,0.00019168,2]
[350260976,1737749439316,-500.0,0.00019168,2]
[350260977,1737749439325,-500.0,0.00019168,2]
[350260978,1737749439335,-500.0,0.00019168,2]
[350260979,1737749439345,-500.0,0.00019168,2]
[350260980,1737749439355,-500.0,0.00019168,2]
[350260981,1737749439365,-500.0,0.00019168,2]
[350260982,1737749439375,-500.0,0.00019168,2]
[350260983,1737749439385,-500.0,0.00019168,2]
[350260984,1737749439395,-500.0,0.00019168,2]
[350260985,1737749439405,-500.0,0.00019168,2]
[350260986,1737749439487,-500.0,0.00019168,2]
[350260987,1737749439498,-500.0,0.00019168,2]
[350260988,1737749439510,-500.0,0.00019168,2]
[350260989,1737749439519,-500.0,0.00019168,2]
[350260990,1737749439529,-500.0,0.00019168,2]
[350260991,1737749439539,-500.0,0.00019168,2]
[350260992,1737749439548,-500.0,0.00019168,2]
[350260993,1737749439559,-500.0,0.00019168,2]
[350260994,1737749439569,-500.0,0.00019168,2]
[350260995,1737749439579,-500.0,0.00019168,2]
[350260996,1737749439589,-500.0,0.00019168,2]
[350260997,1737749439599,-500.0,0.00019168,2]
[350260998,1737749439611,-500.0,0.00019168,2]
[350260999,1737749439621,-500.0,0.00019168,2]
[350261000,1737749439630,-500.0,0.00019168,2]
[350261001,1737749439640,-364.44741961,0.00019168,2]
[350261002,1737749439651,-500.0,0.00019168,2]
[350261003,1737749439661,-500.0,0.00019168,2]
[350261004,1737749439671,-500.0,0.00019168,2]
[350261005,1737749439681,-500.0,0.00019168,2]
[350261006,1737749439690,-500.0,0.00019168,2]
[350261007,1737749439700,-500.0,0.00019168,2]
[350261008,1737749439710,-500.0,0.00019168,2]
[350261009,1737749439720,-500.0,0.00019168,2]
[350261010,1737749439730,-500.0,0.00019168,2]
[350261011,1737749439740,-500.0,0.00019168,2]
[350261012,1737749439750,-500.0,0.00019168,2]
[350261013,1737749439760,-500.0,0.00019168,2]
[350261014,1737749439770,-500.0,0.00019168,2]
[350261015,1737749439780,-500.0,0.00019168,2]
[350261016,1737749439789,-480.38635057,0.00019168,2]
[350261017,1737749439799,-500.0,0.00019168,2]
[350261018,1737749439808,-500.0,0.00019168,2]
[350261019,1737749439818,-500.0,0.00019168,2]
[350261020,1737749439827,-500.0,0.00019168,2]
[350261021,1737749439836,-500.0,0.00019168,2]
[350261022,1737749439845,-500.0,0.00019168,2]
[350261023,1737749439855,-500.0,0.00019168,2]
[350261024,1737749439865,-500.0,0.00019168,2]
[350261025,1737749439875,-500.0,0.00019168,2]
[350261026,1737749439884,-500.0,0.00019173,2]
[350261027,1737749439894,-223.74084542,0.00019173,2]
[350261028,1737749439904,-500.0,0.00019173,2]
[350261029,1737749439914,-500.0,0.00019173,2]
[350261030,1737749439923,-500.0,0.00019173,2]
[350261031,1737749439934,-500.0,0.00019173,2]
[350261032,1737749439943,-512.35044576,0.00019173,2]
[350261033,1737749439953,-500.0,0.00019173,2]
[350261034,1737749439964,-500.0,0.00019173,2]
[350261036,1737749439974,-400.93692984,0.00019173,2]
[350261037,1737749439983,-500.0,0.00019173,2]
[350261038,1737749439993,-152.32733355,0.00019173,2]
[350261039,1737749440002,-500.0,0.00019173,2]
[350261040,1737749440012,-501.08916729,0.00019173,2]
[350261041,1737749440021,-500.0,0.00019173,2]
[350261042,1737749440031,-259.51904216,0.00019173,2]
[350261043,1737749440040,-500.0,0.00019173,2]
[350261045,1737749440050,-284.31450604,0.00019173,2]
[350261047,1737749440059,-253.01393952,0.00019177,2]
[350261049,1737749440069,-500.0,0.00019177,2]
[350261050,1737749440079,-500.0,0.00019177,2]
[350261051,1737749440088,-478.49718787,0.00019177,2]
[350261052,1737749440097,-500.0,0.00019178,2]
[350261054,1737749440107,-500.0,0.00019178,2]
[350261056,1737749440117,-501.12274605,0.00019178,2]
[350261058,1737749440126,-157.34666592,0.00019178,2]
[350261060,1737749440136,-500.0,0.00019178,2]
[350261061,1737749440146,-473.05925283,0.00019178,2]
[350261062,1737749440157,-500.0,0.00019178,2]
[350261063,1737749440167,-500.0,0.00019178,2]
[350261064,1737749440176,-500.0,0.00019178,2]
[350261065,1737749440186,-500.0,0.00019178,2]
[350261066,1737749440196,-506.45293214,0.00019178,2]
[350261067,1737749440205,-500.0,0.00019178,2]
[350261068,1737749440215,-500.0,0.00019178,2]
[350261069,1737749440225,-500.0,0.00019178,2]
[350261070,1737749440235,-514.05433313,0.00019178,2]
[350261071,1737749440245,-500.0,0.00019178,2]
[350261072,1737749440255,-500.0,0.00019178,2]
[350261073,1737749440264,-500.0,0.00019178,2]
[350261074,1737749440275,-480.67277355,0.00019178,2]
[350261075,1737749440284,-500.0,0.00019178,2]
[350261076,1737749440294,-500.0,0.00019178,2]
[350261077,1737749440303,-500.0,0.00019178,2]
[350261078,1737749440313,-501.73770138,0.00019178,2]
[350261079,1737749440324,-188.48702017,0.00019178,2]
[350261080,1737749440334,-562.78666556,0.00019178,2]
[350261081,1737749440344,-500.0,0.00019178,7]
[350261082,1737749440354,-500.0,0.00019178,2]
[350261083,1737749440364,-397.12795239,0.00019178,2]
[350261084,1737749440374,-500.0,0.00019178,2]
[350261085,1737749440385,-249.31059589,0.00019178,2]
[350261086,1737749440395,-500.0,0.00019178,2]
[350261087,1737749440407,-500.0,0.00019178,2]
[350261088,1737749440417,-500.0,0.00019178,2]
[350261089,1737749440427,-515.28936832,0.00019178,2]
[350261090,1737749440437,-500.0,0.00019178,2]
[350261091,1737749440447,-500.0,0.00019178,2]
[350261092,1737749440461,-500.0,0.00019178,2]
[350261093,1737749440471,-500.0,0.00019178,2]
[350261095,1737749440481,-500.0,0.00019178,2]
[350261096,1737749440491,-500.0,0.00019178,2]
[350261098,1737749440503,-500.0,0.00019178,2]
[350261105,1737749440580,-500.0,0.00019178,2]
[350261107,1737749440590,-500.0,0.00019178,2]
[350261109,1737749440599,-504.30440274,0.00019178,2]
[350261110,1737749440608,-500.0,0.00019178,2]
[350261112,1737749440618,-501.48261023,0.00019178,2]
[350261114,1737749440627,-500.0,0.00019178,2]
[350261116,1737749440636,-500.0,0.00019178,2]
[350261118,1737749440646,-500.0,0.00019178,2]
[350261120,1737749440657,-500.0,0.00019178,2]
[350261122,1737749440667,-500.0,0.00019178,2]
[350261123,1737749440677,-500.0,0.00019178,2]
[350261125,1737749440687,-500.0,0.00019178,2]
[350261127,1737749440696,-500.0,0.00019178,2]
[350261128,1737749440706,-500.0,0.00019178,2]
[350261130,1737749440715,-500.0,0.00019178,2]
[350261132,1737749440724,-500.0,0.00019178,2]
[350261133,1737749440734,-500.0,0.00019178,2]
[350261134,1737749440744,-500.0,0.00019178,2]
[350261135,1737749440754,-500.0,0.00019178,2]
[350261136,1737749440763,-500.0,0.00019178,2]
[350261137,1737749440773,-500.0,0.00019178,2]
[350261138,1737749440782,-500.0,0.00019178,2]
[350261139,1737749440792,-500.0,0.00019178,2]
[350261140,1737749440801,-500.0,0.00019178,2]
[350261141,1737749440811,-500.0,0.00019178,2]
[350261142,1737749440821,-500.0,0.00019178,2]
[350261143,1737749440830,-220.65596191,0.00019178,2]
[350261144,1737749440840,-151.0,0.00019178,2]
[350261145,1737749440849,-500.0,0.00019178,2]
[350261146,1737749440859,-151.0,0.00019178,2]
[350261147,1737749440869,-500.0,0.00019178,2]
[350261148,1737749440878,-500.0,0.00019178,2]
[350261149,1737749440888,-500.0,0.00019178,2]
[350261150,1737749440897,-502.53148515,0.00019178,2]
[350261151,1737749440909,-500.0,0.00019178,2]
[350261152,1737749440918,-500.0,0.00019178,2]
[350261153,1737749440928,-508.57539382,0.00019178,2]
[350261154,1737749440937,-500.0,0.00019178,2]
[350261155,1737749440947,-500.0,0.00019178,2]
[350261156,1737749440956,-500.0,0.00019178,2]
[350261157,1737749440966,-391.75589458,0.00019178,2]
[350261158,1737749440975,-502.00931731,0.00019178,2]
[350261159,1737749440984,-548.82713053,0.00019178,2]
[350261160,1737749440994,-502.72003978,0.00019178,2]
[350261161,1737749441003,-500.0,0.00019178,2]
[350261162,1737749441013,-151.0,0.00019178,2]
[350261163,1737749441022,-151.0,0.00019178,2]
[350261164,1737749441031,-500.0,0.00019178,2]
[350261165,1737749441046,-151.0,0.00019178,2]
[350261166,1737749441068,-151.0,0.00019178,2]
[350261167,1737749441085,-500.0,0.00019178,2]
[350261168,1737749441104,-151.0,0.00019178,2]
[350261169,1737749441124,-151.0,0.00019178,2]
[350261170,1737749441141,-500.0,0.00019178,2]
[350261171,1737749441161,-214.730092,0.00019178,2]
[350261172,1737749441177,-502.63337115,0.00019178,2]
[350261173,1737749441193,-501.63897628,0.00019178,2]
[350261174,1737749441211,-500.0,0.00019178,2]
[350261175,1737749441231,-500.0,0.00019178,2]
[350261176,1737749441248,-790.61,0.00019178,2]
[350261177,1737749441262,-503.78527895,0.00019178,2]
[350261178,1737749441281,-500.0,0.00019178,2]
[350261179,1737749441294,-500.0,0.00019178,2]
[350261180,1737749441312,-500.0,0.00019178,2]
[350261181,1737749441325,-541.16,0.00019178,2]
[350261182,1737749441340,-500.0,0.00019178,2]
[350261183,1737749441355,-500.0,0.00019178,2]
[350261184,1737749441372,-500.0,0.00019178,2]
[350261185,1737749441387,-500.0,0.00019178,2]
[350261186,1737749441402,-294.52321922,0.00019178,2]
[350261187,1737749441419,-500.0,0.00019178,2]
[350261188,1737749441434,-555.14470569,0.00019178,2]
[350261189,1737749441449,-500.0,0.00019178,2]
[350261190,1737749441464,-231.0062077,0.00019178,2]
[350261191,1737749441479,-507.16582479,0.00019178,2]
[350261192,1737749441496,-500.0,0.00019178,2]
[350261193,1737749441514,-501.84386738,0.00019178,2]
[350261194,1737749441530,-500.66026076,0.00019178,2]
[350261195,1737749441545,-500.0,0.00019178,2]
[350261196,1737749441560,-500.0,0.00019178,2]
[350261197,1737749441574,-500.0,0.00019178,2]
[350261198,1737749441588,-188.0,0.00019178,2]
[350261199,1737749441603,-500.0,0.00019178,2]
[350261200,1737749441618,-500.0,0.00019178,2]
[350261201,1737749441632,-500.0,0.00019178,2]
[350261202,1737749441646,-502.61169903,0.00019178,2]
[350261203,1737749441664,-500.0,0.00019178,2]
[350261204,1737749441679,-500.0,0.00019178,2]
[350261205,1737749441694,-500.0,0.00019178,2]
[350261206,1737749441709,-501.56384328,0.00019178,2]
[350261207,1737749441722,-500.0,0.00019178,2]
[350261208,1737749441737,-500.0,0.00019178,2]
[350261209,1737749441751,-200.30241972,0.00019178,2]
[350261210,1737749441766,-500.0,0.00019178,2]
[350261211,1737749441781,-500.0,0.00019178,2]
[350261212,1737749441891,-500.0,0.00019178,2]
[350261213,1737749441911,-500.0,0.00019178,2]
[350261214,1737749441921,-500.0,0.00019178,2]
[350261215,1737749441931,-501.47754384,0.00019178,2]
[350261216,1737749441941,-500.0,0.00019178,2]
[350261217,1737749441951,-500.0,0.00019178,2]
[350261218,1737749441960,-315.38131785,0.00019178,2]
[350261219,1737749441970,-500.0,0.00019178,2]
[350261220,1737749441979,-500.0,0.00019178,2]
[350261221,1737749441989,-300.0,0.00019178,2]
[350261222,1737749441998,-162.11190198,0.00019178,2]
[350261223,1737749442008,-500.0,0.00019178,2]
[350261224,1737749442018,-500.0,0.00019178,2]
[350261225,1737749442027,-500.0,0.00019178,2]
[350261226,1737749442036,-500.0,0.00019178,2]
[350261227,1737749442045,-500.0,0.00019178,2]
[350261228,1737749442055,-500.0,0.00019178,2]
[350261229,1737749442065,-500.0,0.00019178,2]
[350261230,1737749442074,-500.0,0.00019178,2]
[350261231,1737749442084,-500.0,0.00019178,2]
[350261232,1737749442093,-500.0,0.00019178,2]
[350261233,1737749442103,-505.83756815,0.00019178,2]
[350261234,1737749442114,-502.41721277,0.00019178,2]
[350261235,1737749442123,-500.0,0.00019178,2]
[350261236,1737749442132,-500.0,0.00019178,2]
[350261237,1737749442141,-500.0,0.00019178,2]
[350261238,1737749442150,-500.0,0.00019178,2]
[350261239,1737749442164,-500.0,0.00019178,2]
[350261240,1737749442173,-500.0,0.00019178,2]
[350261241,1737749442183,-500.0,0.00019178,2]
[350261242,1737749442192,-500.0,0.00019178,2]
[350261243,1737749442202,-500.0,0.00019178,2]
[350261244,1737749442211,-500.0,0.00019178,2]
[350261245,1737749442220,-500.0,0.00019178,2]
[350261246,1737749442230,-500.0,0.00019178,2]
[350261247,1737749442239,-500.0,0.00019178,2]
[350261248,1737749442249,-500.0,0.00019178,2]
[350261249,1737749442259,-500.0,0.00019178,2]
[350261250,1737749442269,-500.0,0.00019178,2]
[350261251,1737749442279,-500.0,0.00019178,2]
[350261252,1737749442289,-500.0,0.00019178,2]
[350261253,1737749442299,-500.0,0.00019178,2]
[350261254,1737749442309,-608.40759881,0.00019178,2]
[350261255,1737749442319,-500.0,0.00019178,2]
[350261256,1737749442329,-502.65132066,0.00019178,2]
[350261257,1737749442340,-500.0,0.00019178,2]
[350261258,1737749442350,-500.0,0.00019178,2]
[350261259,1737749442360,-519.95,0.00019178,2]
[350261260,1737749442369,-500.0,0.00019178,2]
[350261261,1737749442379,-500.0,0.00019178,2]
[350261262,1737749442388,-500.0,0.00019178,2]
[350261263,1737749442398,-500.52844914,0.00019178,2]
[350261264,1737749442410,-500.0,0.00019178,2]
[350261265,1737749442419,-500.0,0.00019178,2]
[350261266,1737749442428,-500.0,0.00019178,2]
[350261267,1737749442438,-313.50588907,0.00019178,2]
[350261268,1737749442447,-500.0,0.00019178,2]
[350261269,1737749442456,-528.12613104,0.00019178,2]
[350261270,1737749442466,-500.0,0.00019178,2]
[350261271,1737749442475,-500.0,0.00019178,2]
[350261272,1737749442485,-500.0,0.00019178,2]
[350261273,1737749442495,-503.35757614,0.00019178,2]
[350261274,1737749442508,-500.0,0.00019178,2]
[350261275,1737749442518,-500.0,0.00019178,2]
[350261276,1737749442527,-500.0,0.00019178,2]
[350261277,1737749442537,-500.0,0.00019178,2]
[350261278,1737749442547,-617.59084311,0.00019178,2]